fUSD/lending_fUSD_20250426
["ID","MTS","AMOUNT","RATE_DAILY","PERIOD"]
[359080266,1745698334208,307.6412562,0.0002573,30]
[359080267,1745698340264,1338.23399659,0.0002573,30]
[359080268,1745698341045,242.84924631,0.0002573,30]
[359080269,1745698370764,290.88,0.00018958,2]
[359080271,1745698396353,22240.8356534,0.0003,30]
[359080273,1745698503786,150.0,0.0002573,30]
[359080274,1745698507110,150.0,0.0002573,30]
[359080275,1745698514312,216.11300496,0.0002573,30]
[359080276,1745698514514,250.0,0.00017,2]
[359080277,1745698515589,300.0,0.00019,2]
[359080278,1745698517709,164.27939705,0.0002573,30]
[359080279,1745698526308,153.63,0.00018891,2]
[359080280,1745698683160,224.76667957,0.0002573,30]
[359080281,1745698687577,251.42351764,0.0002573,30]
[359080282,1745698689488,1000.0,0.00018825,2]
[359080283,1745698771158,662.33,0.00016888,2]
[359080284,1745698771360,662.33,0.00019151,2]
[359080285,1745698792959,-1000.0,0.00046205,30]
[359080286,1745698792990,-3833.90472211,0.00046205,120]
[359080287,1745698793019,-1530.0978936,0.00046205,120]
[359080288,1745698793044,-421.56863499,0.00046205,30]
[359080289,1745698793072,-972.0,0.00046205,30]
[359080290,1745698793101,-500.0,0.00046205,120]
[359080291,1745698793128,-205.4474082,0.00046205,60]
[359080292,1745698793163,-1074.49299869,0.00046205,120]
[359080293,1745698793192,-2024.66,0.00046205,90]
[359080294,1745698793222,-7629.0,0.00046205,30]
[359080295,1745698793249,-521.41,0.00046205,120]
[359080296,1745698793279,-1230.45,0.00046205,120]
[359080297,1745698793308,-6098.21,0.00046205,30]
[359080298,1745698793337,-7294.72811309,0.00046205,120]
[359080299,1745698793363,-1143.27819844,0.00046205,30]
[359080300,1745698793389,-1807.08617328,0.00046205,30]
[359080301,1745698793417,-399.84868899,0.00046205,120]
[359080302,1745698793445,-87095.14457181,0.00046205,30]
[359080303,1745698793475,-2264.0,0.00046205,30]
[359080304,1745698793504,-996.74,0.00046205,120]
[359080305,1745698793532,-1132.0,0.00046205,30]
[359080306,1745698793559,-1996.399199,0.00046205,30]
[359080307,1745698793590,-50000.0,0.00046205,30]
[359080308,1745698793619,-50000.0,0.00046205,31]
[359080309,1745698793647,-50000.0,0.00046205,32]
[359080310,1745698793683,-50000.0,0.00046205,33]
[359080311,1745698793713,-50000.0,0.00046205,34]
[359080312,1745698793740,-50000.0,0.00046205,35]
[359080313,1745698793767,-714.0,0.00046205,30]
[359080314,1745698793795,-357.0,0.00046205,30]
[359080315,1745698793821,-178.0,0.00046205,30]
[359080316,1745698793848,-1588.38125664,0.00046205,120]
[359080317,1745698793876,-293.09792387,0.00046205,120]
[359080318,1745698793904,-8833.73675614,0.00046205,30]
[359080319,1745698793931,-12193.77532657,0.00046205,90]
[359080320,1745698793959,-194.0,0.00046205,120]
[359080321,1745698793989,-1072.0,0.00046205,30]
[359080322,1745698794014,-1078.53193708,0.00046205,30]
[359080323,1745698794040,-2355017.80940352,0.00046205,120]
[359080324,1745698794068,-1858.74052871,0.00046205,120]
[359080325,1745698794096,-5010.0,0.00046205,120]
[359080326,1745698794125,-40000.0,0.00046205,90]
[359080327,1745698794157,-500.0,0.00046205,120]
[359080328,1745698794183,-500.0,0.00046205,120]
[359080329,1745698794209,-500.0,0.00046205,120]
[359080330,1745698794235,-500.0,0.00046205,120]
[359080331,1745698794261,-500.0,0.00046205,120]
[359080332,1745698794290,-500.0,0.00046205,120]
[359080333,1745698794318,-500.0,0.00046205,120]
[359080334,1745698794345,-500.0,0.00046205,120]
[359080335,1745698794371,-500.0,0.00046205,120]
[359080336,1745698794399,-500.0,0.00046205,120]
[359080337,1745698794544,-500.0,0.00046205,120]
[359080338,1745698794573,-525.23886812,0.00046205,120]
[359080339,1745698794598,-500.0,0.00046205,120]
[359080340,1745698794624,-500.0,0.00046205,120]
[359080341,1745698794649,-500.0,0.00046205,120]
[359080342,1745698794674,-500.0,0.00046205,120]
[359080343,1745698794700,-500.0,0.00046205,120]
[359080344,1745698794725,-500.0,0.00046205,120]
[359080345,1745698794750,-500.0,0.00046205,120]
[359080346,1745698794775,-500.0,0.00046205,120]
[359080347,1745698794799,-500.0,0.00046205,120]
[359080348,1745698794824,-500.0,0.00046205,120]
[359080349,1745698794849,-500.0,0.00046205,120]
[359080350,1745698794874,-500.0,0.00046205,120]
[359080351,1745698794899,-500.0,0.00046205,120]
[359080352,1745698794925,-627.92438135,0.00046205,120]
[359080353,1745698811396,-207.0,0.0003011,30]
[359080354,1745698811430,-207.0,0.000308,30]
[359080355,1745698811464,-207.0,0.0003149,30]
[359080356,1745698811493,-4546.05071266,0.00032,120]
[359080357,1745698811519,-207.0,0.0003218,30]
[359080358,1745698811546,-2112.94459302,0.0003254,30]
[359080359,1745698811576,-207.0,0.0003287,30]
[359080360,1745698811606,-300.0,0.00032876,30]
[359080361,1745698811636,-300.0,0.00032876,30]
[359080362,1745698811662,-301.4405855,0.00032876,30]
[359080363,1745698811690,-185.95,0.00032877,30]
[359080364,1745698811719,-476.4751581,0.000331,30]
[359080365,1745698811756,-152.83,0.000335,31]
[359080366,1745698811790,-152.83,0.000335,31]
[359080367,1745698811826,-152.83,0.000335,31]
[359080368,1745698811860,-152.83,0.000335,31]
[359080369,1745698811898,-152.83,0.000335,31]
[359080370,1745698811936,-152.83,0.000335,31]
[359080371,1745698811972,-152.83,0.000335,31]
[359080372,1745698812009,-152.83,0.000335,31]
[359080373,1745698812046,-152.83,0.000335,31]
[359080374,1745698812076,-100000.0,0.00035,30]
[359080375,1745698812102,-30623.73294241,0.00035,30]
[359080376,1745698812128,-6000.0,0.00035,30]
[359080377,1745698812157,-152.0,0.00035728,30]
[359080378,1745698812186,-152.0,0.00036164,31]
[359080379,1745698812221,-152.83,0.000368,31]
[359080380,1745698812255,-152.83,0.000368,31]
[359080381,1745698812289,-152.83,0.000368,31]
[359080382,1745698812320,-152.83,0.000368,31]
[359080383,1745698812352,-152.83,0.000368,31]
[359080384,1745698812385,-152.83,0.000368,31]
[359080385,1745698812418,-152.83,0.000368,31]
[359080386,1745698812451,-152.83,0.000368,31]
[359080387,1745698812484,-152.83,0.000368,31]
[359080388,1745698812518,-152.83,0.000368,31]
[359080389,1745698812565,-152.83,0.000368,31]
[359080390,1745698812598,-152.83,0.000368,31]
[359080391,1745698812631,-152.83,0.000368,31]
[359080392,1745698812666,-152.83,0.000368,31]
[359080393,1745698812699,-152.83,0.000368,31]
[359080394,1745698812732,-152.83,0.000368,31]
[359080395,1745698812764,-152.83,0.000368,31]
[359080396,1745698812796,-152.83,0.000368,31]
[359080397,1745698812824,-295.0,0.000377,54]
[359080398,1745698812850,-500.0,0.000378,30]
[359080399,1745698812876,-16000.0,0.000378,60]
[359080400,1745698812904,-150.0,0.000379,60]
[359080401,1745698812929,-500.0,0.000379,60]
[359080402,1745698812956,-185.95,0.00038356,30]
[359080403,1745698812984,-160.0,0.000387,57]
[359080404,1745698813010,-800.0,0.000391,120]
[359080405,1745698813035,-169.0,0.0003959,53]
[359080406,1745698813061,-160.0,0.000397,60]
[359080407,1745698813087,-151.65324015,0.000399,30]
[359080408,1745698813113,-47419.0,0.0004,120]
[359080409,1745698813138,-155.61851248,0.0004,120]
[359080410,1745698813164,-1000.0,0.0004,120]
[359080411,1745698813189,-241.42142587,0.0004,30]
[359080412,1745698813217,-794.39556464,0.0004,30]
[359080413,1745698813548,-471.52820028,0.0004,30]
[359080414,1745698813578,-9146.92217436,0.0004,30]
[359080415,1745698813607,-12691.0,0.0004,60]
[359080416,1745698813634,-286979.0,0.0004,60]
[359080417,1745698813661,-50000.0,0.0004,30]
[359080418,1745698813688,-157.6,0.0004,30]
[359080419,1745698813715,-157.6,0.0004,30]
[359080420,1745698813740,-1000.0,0.000401,120]
[359080421,1745698813776,-152.83,0.000401,31]
[359080422,1745698813810,-152.83,0.000401,31]
[359080423,1745698813843,-152.83,0.000401,31]
[359080424,1745698813878,-152.83,0.000401,31]
[359080425,1745698813916,-152.83,0.000401,31]
[359080426,1745698813951,-152.83,0.000401,31]
[359080427,1745698813985,-152.83,0.000401,31]
[359080428,1745698814019,-152.83,0.000401,31]
[359080429,1745698814051,-152.83,0.000401,31]
[359080430,1745698814084,-152.83,0.000401,31]
[359080431,1745698814116,-152.83,0.000401,31]
[359080432,1745698814147,-152.83,0.000401,31]
[359080433,1745698814177,-152.83,0.000401,31]
[359080434,1745698814208,-152.83,0.000401,31]
[359080435,1745698814239,-152.83,0.000401,31]
[359080436,1745698814273,-152.83,0.000401,31]
[359080437,1745698814308,-152.83,0.000401,31]
[359080438,1745698814343,-152.83,0.000401,31]
[359080439,1745698814370,-1000.0,0.000405,120]
[359080440,1745698814395,-1000.0,0.000406,120]
[359080441,1745698814421,-1333.0,0.00040658,120]
[359080442,1745698814446,-160.0,0.000407,63]
[359080443,1745698814471,-306.93,0.000407,120]
[359080444,1745698814496,-309.95153,0.00040888,30]
[359080445,1745698814521,-1000.0,0.000409,120]
[359080446,1745698814547,-1000.0,0.00041,120]
[359080447,1745698814573,-309.95153,0.00041088,30]
[359080448,1745698814598,-1000.0,0.00041095,120]
[359080449,1745698814621,-1000.0,0.00041095,120]
[359080450,1745698814645,-1000.0,0.00041095,120]
[359080451,1745698814670,-1000.0,0.00041095,120]
[359080452,1745698814695,-1000.0,0.00041095,120]
[359080453,1745698814719,-1000.0,0.00041095,120]
[359080454,1745698814744,-1000.0,0.00041095,120]
[359080455,1745698814769,-1000.0,0.00041095,120]
[359080456,1745698814794,-1000.0,0.00041095,120]
[359080457,1745698814819,-1000.0,0.00041095,120]
[359080458,1745698814844,-1000.0,0.00041095,120]
[359080459,1745698814868,-1000.0,0.00041095,120]
[359080460,1745698814895,-1000.0,0.00041095,120]
[359080461,1745698814922,-1000.0,0.00041095,120]
[359080462,1745698814948,-1000.0,0.00041095,120]
[359080463,1745698814975,-207.82436613,0.00041095,120]
[359080464,1745698815004,-267.86,0.00041095,120]
[359080465,1745698815036,-500.0,0.00041096,30]
[359080466,1745698815062,-464.0,0.00041096,30]
[359080467,1745698815092,-1000.0,0.000411,120]
[359080468,1745698815120,-907.98,0.00041232,30]
[359080469,1745698815147,-455.14,0.00041232,30]
[359080470,1745698815173,-323.33,0.00041232,30]
[359080471,1745698815198,-309.95153,0.00041288,30]
[359080472,1745698815224,-309.95153,0.00041488,30]
[359080473,1745698815252,-1000.0,0.000415,120]
[359080474,1745698815277,-1000.0,0.000416,120]
[359080475,1745698815303,-309.95153,0.00041688,30]
[359080476,1745698815331,-160.0,0.000417,66]
[359080477,1745698815357,-309.95153,0.00041888,30]
[359080478,1745698815383,-1000.0,0.000419,120]
[359080479,1745698815409,-150.5,0.0004197,120]
[359080480,1745698815435,-150.5,0.0004197,120]
[359080481,1745698815461,-150.5,0.0004197,120]
[359080482,1745698815486,-150.5,0.0004197,120]
[359080483,1745698815510,-174.0,0.0004197,120]
[359080484,1745698815534,-298.49,0.0004197,120]
[359080485,1745698815558,-150.5,0.0004198,120]
[359080486,1745698815583,-150.5,0.0004198,120]
[359080487,1745698815608,-150.5,0.0004198,120]
[359080488,1745698815633,-150.5,0.0004198,120]
[359080489,1745698815659,-150.5,0.0004198,120]
[359080490,1745698815685,-150.5,0.0004198,120]
[359080491,1745698815710,-150.5,0.0004199,120]
[359080492,1745698815735,-150.5,0.0004199,120]
[359080493,1745698815760,-150.5,0.0004199,120]
[359080494,1745698815787,-150.5,0.0004199,120]
[359080495,1745698815814,-150.5,0.0004199,120]
[359080496,1745698815840,-294.87,0.0004199,120]
[359080497,1745698815865,-150.5,0.0004199,120]
[359080498,1745698815892,-2000.0,0.00041999,120]
[359080499,1745698815918,-173.306566,0.00041999,120]
[359080500,1745698815945,-1000.0,0.00042,120]
[359080501,1745698815972,-309.95153,0.00042088,30]
[359080502,1745698816009,-1000.0,0.000421,120]
[359080503,1745698816039,-309.95153,0.00042288,30]
[359080504,1745698816069,-3208.403,0.0004242,64]
[359080505,1745698816096,-267.86,0.00042465,120]
[359080506,1745698816123,-300.0,0.00042465,30]
[359080507,1745698816150,-150.0,0.00042465,30]
[359080508,1745698816175,-300.0,0.00042465,30]
[359080509,1745698816202,-150.0,0.00042465,30]
[359080510,1745698816250,-150.0,0.00042465,30]
[359080511,1745698816276,-150.0,0.00042465,30]
[359080512,1745698816301,-300.0,0.00042465,30]
[359080513,1745698816325,-450.48,0.00042465,30]
[359080514,1745698816351,-450.63,0.00042465,30]
[359080515,1745698816375,-150.0,0.00042465,30]
[359080516,1745698816401,-150.0,0.00042465,30]
[359080517,1745698816615,-686.76,0.00042465,30]
[359080518,1745698816644,-1151.69,0.00042465,30]
[359080519,1745698816672,-450.63,0.00042465,30]
[359080520,1745698816700,-1151.69,0.00042465,30]
[359080521,1745698816727,-1151.69,0.00042465,30]
[359080522,1745698816753,-450.63,0.00042465,30]
[359080523,1745698816780,-2303.38,0.00042465,30]
[359080524,1745698816809,-450.63,0.00042465,30]
[359080525,1745698816848,-1151.69,0.00042465,30]
[359080526,1745698816877,-150.0,0.00042465,30]
[359080527,1745698816904,-323.82,0.00042465,30]
[359080528,1745698816930,-1151.69,0.00042465,30]
[359080529,1745698816956,-346.24,0.00042465,30]
[359080530,1745698816986,-300.0,0.00042465,30]
[359080531,1745698817013,-909.97,0.00042465,30]
[359080532,1745698817039,-1151.69,0.00042465,30]
[359080533,1745698817066,-161.91,0.00042465,30]
[359080534,1745698817092,-300.0,0.00042465,30]
[359080535,1745698817118,-1151.69,0.00042465,30]
[359080536,1745698817149,-450.63,0.00042465,30]
[359080537,1745698817179,-150.0,0.00042465,30]
[359080538,1745698817206,-450.63,0.00042465,30]
[359080539,1745698817233,-309.95153,0.00042488,30]
[359080540,1745698817260,-1000.0,0.000425,120]
[359080541,1745698817286,-1000.0,0.000426,120]
[359080542,1745698817312,-309.95153,0.00042688,30]
[359080543,1745698817337,-160.0,0.000427,69]
[359080544,1745698817364,-309.95153,0.00042888,30]
[359080545,1745698817389,-1000.0,0.000429,120]
[359080546,1745698817418,-187.33703493,0.00042978,30]
[359080547,1745698817445,-157.9559339,0.00043,120]
[359080548,1745698817472,-1000.0,0.00043,120]
[359080549,1745698817497,-10344.093864,0.00043,30]
[359080550,1745698817524,-23150.56,0.00043,60]
[359080551,1745698817549,-173.81,0.00043,120]
[359080552,1745698817576,-309.95153,0.00043088,30]
[359080553,1745698817601,-1000.0,0.000431,120]
[359080554,1745698817628,-150.0,0.00043287,30]
[359080555,1745698817654,-303.64,0.00043287,30]
[359080556,1745698817679,-150.0,0.00043287,30]
[359080557,1745698817705,-161.91,0.00043287,30]
[359080558,1745698817731,-150.0,0.00043287,30]
[359080559,1745698817756,-161.91,0.00043287,30]
[359080560,1745698817782,-150.0,0.00043287,30]
[359080561,1745698817809,-150.0,0.00043287,30]
[359080562,1745698817838,-161.91,0.00043287,30]
[359080563,1745698817864,-150.0,0.00043287,30]
[359080564,1745698817891,-161.91,0.00043287,30]
[359080565,1745698817919,-161.91,0.00043287,30]
[359080566,1745698817945,-351.4,0.00043287,30]
[359080567,1745698817972,-351.4,0.00043287,30]
[359080568,1745698818002,-309.95153,0.00043288,30]
[359080569,1745698818034,-152.83,0.000434,33]
[359080570,1745698818067,-152.83,0.000434,33]
[359080571,1745698818099,-152.83,0.000434,33]
[359080572,1745698818131,-152.83,0.000434,33]
[359080573,1745698818164,-152.83,0.000434,33]
[359080574,1745698818197,-152.83,0.000434,33]
[359080575,1745698818230,-152.83,0.000434,33]
[359080576,1745698818261,-152.83,0.000434,33]
[359080577,1745698818293,-152.83,0.000434,33]
[359080578,1745698818326,-152.83,0.000434,33]
[359080579,1745698818358,-152.83,0.000434,33]
[359080580,1745698818390,-152.83,0.000434,33]
[359080581,1745698818425,-152.83,0.000434,33]
[359080582,1745698818457,-152.83,0.000434,33]
[359080583,1745698818491,-152.83,0.000434,33]
[359080584,1745698818524,-152.83,0.000434,33]
[359080585,1745698818558,-152.83,0.000434,33]
[359080586,1745698818590,-152.83,0.000434,33]
[359080587,1745698818615,-1046.18089513,0.0004347,30]
[359080588,1745698818641,-309.95153,0.00043488,30]
[359080589,1745698818668,-2000.0,0.00043499,120]
[359080590,1745698818694,-1000.0,0.000435,120]
[359080591,1745698818720,-1000.0,0.000436,120]
[359080592,1745698818747,-246.77,0.000436,120]
[359080593,1745698818773,-296.26,0.000436,120]
[359080594,1745698818800,-309.95153,0.00043688,30]
[359080595,1745698818828,-160.0,0.000437,72]
[359080596,1745698818855,-267.86,0.00043835,120]
[359080597,1745698818883,-1000.0,0.00043835,120]
[359080598,1745698818911,-1000.0,0.00043835,120]
[359080599,1745698818939,-1000.0,0.00043835,120]
[359080600,1745698818967,-1000.0,0.00043835,120]
[359080601,1745698818997,-1022.27090466,0.00043835,120]
[359080602,1745698819023,-185.95,0.00043836,30]
[359080603,1745698819050,-158.64598638,0.0004384,120]
[359080604,1745698819079,-158.64598638,0.0004384,120]
[359080605,1745698819105,-158.64598638,0.0004384,120]
[359080606,1745698819131,-158.64598638,0.0004384,120]
[359080607,1745698819159,-158.64598638,0.0004384,120]
[359080608,1745698819185,-158.64598638,0.0004384,120]
[359080609,1745698819211,-158.64598638,0.0004384,120]
[359080610,1745698819237,-158.64,0.0004384,120]
[359080611,1745698819263,-155.86272346,0.0004384,120]
[359080612,1745698819289,-155.86272346,0.0004384,120]
[359080613,1745698819315,-155.86272346,0.0004384,120]
[359080614,1745698819341,-155.86272346,0.0004384,120]
[359080615,1745698819369,-155.86272346,0.0004384,120]
[359080616,1745698819397,-155.86272346,0.0004384,120]
[359080617,1745698819423,-155.86272346,0.0004384,120]
[359080618,1745698819449,-155.86272346,0.0004384,120]
[359080619,1745698819475,-155.86272346,0.0004384,120]
[359080620,1745698819502,-155.86272346,0.0004384,120]
[359080621,1745698819748,-155.86272346,0.0004384,120]
[359080622,1745698819777,-155.86272346,0.0004384,120]
[359080623,1745698819804,-155.86272346,0.0004384,120]
[359080624,1745698819832,-155.86272346,0.0004384,120]
[359080625,1745698819859,-155.86272346,0.0004384,120]
[359080626,1745698819885,-155.86272346,0.0004384,120]
[359080627,1745698819912,-155.86272346,0.0004384,120]
[359080628,1745698819938,-155.86272346,0.0004384,120]
[359080629,1745698819964,-155.86,0.0004384,120]
[359080630,1745698819991,-387.21801669,0.0004384,120]
[359080631,1745698820017,-387.21801669,0.0004384,120]
[359080632,1745698820042,-387.21801669,0.0004384,120]
[359080633,1745698820067,-387.21801669,0.0004384,120]
[359080634,1745698820093,-387.21801669,0.0004384,120]
[359080635,1745698820118,-387.21801669,0.0004384,120]
[359080636,1745698820144,-387.21801669,0.0004384,120]
[359080637,1745698820170,-387.21801669,0.0004384,120]
[359080638,1745698820196,-387.21801669,0.0004384,120]
[359080639,1745698820222,-387.21801669,0.0004384,120]
[359080640,1745698820248,-387.21801669,0.0004384,120]
[359080641,1745698820275,-387.21801669,0.0004384,120]
[359080642,1745698820300,-387.21801669,0.0004384,120]
[359080643,1745698820328,-387.21801669,0.0004384,120]
[359080644,1745698820353,-387.21801669,0.0004384,120]
[359080645,1745698820380,-387.21801669,0.0004384,120]
[359080646,1745698820406,-387.21801669,0.0004384,120]
[359080647,1745698820431,-387.21801669,0.0004384,120]
[359080648,1745698820457,-387.21801669,0.0004384,120]
[359080649,1745698820482,-387.21,0.0004384,120]
[359080650,1745698820508,-903.5087056,0.0004384,120]
[359080651,1745698820534,-903.5087056,0.0004384,120]
[359080652,1745698820560,-903.5087056,0.0004384,120]
[359080653,1745698820587,-903.5087056,0.0004384,120]
[359080654,1745698820612,-903.5087056,0.0004384,120]
[359080655,1745698820638,-903.5087056,0.0004384,120]
[359080656,1745698820666,-903.5087056,0.0004384,120]
[359080657,1745698820692,-903.5087056,0.0004384,120]
[359080658,1745698820717,-903.5087056,0.0004384,120]
[359080659,1745698820743,-903.5087056,0.0004384,120]
[359080660,1745698820770,-903.5087056,0.0004384,120]
[359080661,1745698820795,-903.5087056,0.0004384,120]
[359080662,1745698820823,-903.5087056,0.0004384,120]
[359080663,1745698820848,-903.5087056,0.0004384,120]
[359080664,1745698820874,-903.5087056,0.0004384,120]
[359080665,1745698820899,-903.5087056,0.0004384,120]
[359080666,1745698820924,-903.5087056,0.0004384,120]
[359080667,1745698820951,-903.5087056,0.0004384,120]
[359080668,1745698820979,-903.5087056,0.0004384,120]
[359080669,1745698821006,-903.5,0.0004384,120]
[359080670,1745698821034,-416.2515504,0.0004384,120]
[359080671,1745698821063,-416.2515504,0.0004384,120]
[359080672,1745698821091,-416.2515504,0.0004384,120]
[359080673,1745698821118,-416.2515504,0.0004384,120]
[359080674,1745698821146,-416.2515504,0.0004384,120]
[359080675,1745698821172,-416.2515504,0.0004384,120]
[359080676,1745698821197,-416.2515504,0.0004384,120]
[359080677,1745698821222,-416.2515504,0.0004384,120]
[359080678,1745698821247,-416.2515504,0.0004384,120]
[359080679,1745698821274,-416.2515504,0.0004384,120]
[359080680,1745698821299,-416.2515504,0.0004384,120]
[359080681,1745698821326,-416.2515504,0.0004384,120]
[359080682,1745698821351,-416.2515504,0.0004384,120]
[359080683,1745698821377,-416.2515504,0.0004384,120]
[359080684,1745698821403,-416.2515504,0.0004384,120]
[359080685,1745698821430,-416.2515504,0.0004384,120]
[359080686,1745698821456,-416.2515504,0.0004384,120]
[359080687,1745698821483,-416.2515504,0.0004384,120]
[359080688,1745698821512,-416.2515504,0.0004384,120]
[359080689,1745698821541,-416.25,0.0004384,120]
[359080690,1745698821567,-971.2536176,0.0004384,120]
[359080691,1745698821593,-971.2536176,0.0004384,120]
[359080692,1745698821619,-971.2536176,0.0004384,120]
[359080693,1745698821644,-971.2536176,0.0004384,120]
[359080694,1745698821670,-971.2536176,0.0004384,120]
[359080695,1745698821697,-971.2536176,0.0004384,120]
[359080696,1745698821723,-971.2536176,0.0004384,120]
[359080697,1745698821748,-971.2536176,0.0004384,120]
[359080698,1745698821775,-971.2536176,0.0004384,120]
[359080699,1745698821801,-971.2536176,0.0004384,120]
[359080700,1745698821826,-971.2536176,0.0004384,120]
[359080701,1745698821851,-971.2536176,0.0004384,120]
[359080702,1745698821878,-971.2536176,0.0004384,120]
[359080703,1745698821906,-971.2536176,0.0004384,120]
[359080704,1745698821933,-971.2536176,0.0004384,120]
[359080705,1745698821960,-971.2536176,0.0004384,120]
[359080706,1745698821987,-971.2536176,0.0004384,120]
[359080707,1745698822012,-971.2536176,0.0004384,120]
[359080708,1745698822037,-971.2536176,0.0004384,120]
[359080709,1745698822062,-971.25,0.0004384,120]
[359080710,1745698822087,-1253.93717753,0.000439,120]
[359080711,1745698822112,-1000.0,0.000439,120]
[359080712,1745698822138,-1000.0,0.00044,120]
[359080713,1745698822165,-502.61,0.00044,31]
[359080714,1745698822191,-4105.05042308,0.00044,30]
[359080715,1745698822218,-272.61,0.00044,120]
[359080716,1745698822245,-522.77238,0.00044,57]
[359080717,1745698822271,-177.0,0.00044,90]
[359080718,1745698822297,-309.95153,0.00044088,30]
[359080719,1745698822323,-1000.0,0.000441,120]
[359080720,1745698822349,-342.17,0.00044109,30]
[359080721,1745698822375,-351.4,0.00044109,30]
[359080722,1745698822402,-351.4,0.00044109,30]
[359080723,1745698822427,-351.4,0.00044109,30]
[359080724,1745698822454,-351.4,0.00044109,30]
[359080725,1745698822479,-351.4,0.00044109,30]
[359080726,1745698822769,-351.4,0.00044109,30]
[359080727,1745698822796,-168.21,0.00044109,30]
[359080728,1745698822823,-309.95153,0.00044288,30]
[359080729,1745698822848,-177.0,0.0004436,90]
[359080730,1745698822873,-331.84891957,0.0004439,120]
[359080731,1745698822900,-309.95153,0.00044488,30]
[359080732,1745698822924,-1000.0,0.000445,120]
[359080733,1745698822950,-1000.0,0.000446,120]
[359080734,1745698822975,-309.95153,0.00044688,30]
[359080735,1745698823004,-160.0,0.000447,75]
[359080736,1745698823029,-1269.0,0.0004488,30]
[359080737,1745698823055,-309.95153,0.00044888,30]
[359080738,1745698823079,-1000.0,0.000449,120]
[359080739,1745698823105,-702.8,0.00044931,30]
[359080740,1745698823130,-150.0,0.0004497,30]
[359080741,1745698823156,-449.855937,0.00044999,120]
[359080742,1745698823183,-50000.0,0.00045,35]
[359080743,1745698823207,-12485.0,0.00045,120]
[359080744,1745698823232,-500.0,0.00045,31]
[359080745,1745698823259,-500.0,0.00045,120]
[359080746,1745698823286,-627.54692638,0.00045,120]
[359080747,1745698823311,-1000.0,0.00045,120]
[359080748,1745698823338,-28508.13540864,0.00045,32]
[359080749,1745698823365,-96550.07123224,0.00045,60]
[359080750,1745698823392,-2229.16,0.00045,120]
[359080751,1745698823418,-2229.16,0.00045,120]
[359080752,1745698823444,-2229.16,0.00045,120]
[359080753,1745698823470,-2000.0,0.00045,30]
[359080754,1745698823496,-75300.0,0.00045,90]
[359080755,1745698823522,-151.0,0.00045,120]
[359080756,1745698823548,-386.06649232,0.00045,120]
[359080757,1745698823573,-560.49863103,0.00045,120]
[359080758,1745698823599,-23150.56,0.00045,60]
[359080759,1745698823625,-229.65784233,0.00045,30]
[359080760,1745698823652,-1476.31691084,0.00045,120]
[359080761,1745698823677,-1070.89912694,0.00045,30]
[359080762,1745698823704,-2838.3292399,0.00045,30]
[359080763,1745698823730,-467540.98198386,0.00045,60]
[359080764,1745698823757,-292.0543908,0.00045,120]
[359080765,1745698823784,-152.0,0.00045,90]
[359080766,1745698823810,-309.95153,0.00045088,30]
[359080767,1745698823835,-1000.0,0.000451,120]